bitfinex/quotes_ETHUSD_20250314
["timestamp","ask_amount","ask_price","bid_price","bid_amount"]
[1741978225788,5.69588,1943.3,1943.0,5.14666]
[1741978227416,0.55,1943.3,1943.0,5.14666]
[1741978228385,3.0,1943.4,1943.1,5.97806]
[1741978230394,3.0,1943.4,1943.1,5.97793]
[1741978230799,3.0,1943.4,1943.1,11.12424]
[1741978231004,3.0,1943.4,1943.1,5.97793]
[1741978231715,0.55,1943.3,1943.1,0.8317]
[1741978231919,0.55,1943.1,1942.8,0.48198579]
[1741978232120,5.14669,1943.0,1942.8,0.48198579]
[1741978232296,0.55,1942.9,1942.8,0.7704656]
[1741978232499,9.82368869,1942.9,1942.8,0.7704656]
[1741978232695,14.70682656,1942.9,1942.8,0.7704656]
[1741978232901,19.80582656,1942.9,1942.8,0.7704656]
[1741978234216,0.55,1942.6,1942.4,0.48234]
[1741978234422,0.09589719,1942.5,1942.4,0.48234]
[1741978234933,12.91011999,1942.5,1942.4,0.48234]
[1741978235085,14.97135013,1942.5,1942.4,0.48234]
[1741978235498,20.07035013,1942.5,1942.4,0.48234]
[1741978236221,20.07035013,1942.5,1941.8,5.93473]
[1741978236222,3.55,1942.4,1941.8,5.93473]
[1741978236414,0.55,1942.0,1941.8,0.7849]
[1741978236584,0.09390018,1941.9,1941.7,5.9205656]
[1741978238416,0.55,1941.4,1941.2,0.48154828]
[1741978238718,0.09199505,1941.3,1941.2,0.48154828]
[1741978238883,5.70118,1941.3,1941.2,0.48154828]
[1741978239084,5.79356286,1941.3,1941.2,0.48154828]
[1741978239290,7.29965943,1941.3,1941.2,0.48154828]
[1741978239823,3.55,1941.2,1940.9,5.95203]
[1741978240023,0.09150556,1941.1,1940.9,5.95203]
[1741978240221,3.55,1941.2,1940.9,5.95203]
[1741978240522,0.09150556,1941.1,1941.0,5.15198]
[1741978240825,3.0,1941.4,1941.1,5.15155]
[1741978240996,0.09190475,1941.3,1941.1,5.15155]
[1741978241201,3.0,1941.4,1941.1,5.15155]
[1741978241402,0.09190475,1941.3,1941.1,5.15155]
[1741978241593,3.0,1941.4,1941.1,5.15155]
[1741978241793,0.09190475,1941.3,1941.1,5.15155]
[1741978241993,3.0,1941.4,1941.1,10.30309]
[1741978242209,0.09224223,1941.3,1941.1,5.15154]
[1741978242415,3.0,1941.4,1941.1,10.30305]
[1741978242623,0.09195698,1941.3,1941.1,5.15151]
[1741978242826,3.0,1941.4,1941.2,5.15145]
[1741978243124,3.55,1941.4,1941.3,5.96358]
[1741978243495,16.43534,1941.7,1941.3,5.96358]
[1741978243694,0.55,1941.6,1941.3,5.96358]
[1741978243894,3.55,1941.6,1941.3,5.96358]
[1741978244096,0.355,1941.5,1941.0,5.15179]
[1741978244297,0.55,1941.3,1941.1,5.15171]
[1741978245313,3.0,1941.4,1940.9,0.7623]
[1741978245314,3.0,1941.4,1941.3,5.15118]
[1741978245502,3.0,1941.4,1941.2,5.15131]
[1741978245705,3.09233314,1941.4,1941.2,5.15131]
[1741978247123,3.09233314,1941.4,1941.3,0.769]
[1741978247693,3.09233314,1941.4,1941.3,5.92018]
[1741978248296,0.09233314,1941.4,1941.3,5.92018]
[1741978248709,0.55,1941.8,1941.6,5.15035]
[1741978248905,0.55,1941.8,1941.6,5.15029]
[1741978249109,0.55,1941.8,1941.6,10.30053]
[1741978249425,6.1,1942.1,1941.7,5.15006]
[1741978249625,5.14937,1942.0,1941.6,5.9765]
[1741978249931,3.0,1941.9,1941.6,11.1267]
[1741978251033,5.69995,1941.8,1941.4,5.95066]
[1741978251200,8.15021,1941.7,1941.3,10.30217]
[1741978251400,3.0,1941.7,1941.4,5.15082]
[1741978252030,0.6361,1941.8,1941.5,5.15063]
[1741978252236,3.0,1941.9,1941.6,5.15024]
[1741978252533,3.0,1941.9,1941.6,5.91623]
[1741978253532,5.69999,1941.8,1941.4,5.15073]
[1741978253839,8.14988,1941.8,1941.1,6.7608]
[1741978254044,5.70021,1941.7,1941.3,5.15107]
[1741978254244,0.55,1941.7,1941.3,5.15104]
[1741978254398,0.55,1941.7,1941.4,5.1508]
[1741978254602,5.70016,1941.7,1941.3,5.1511]
[1741978255325,4.0301228,1941.8,1941.5,5.15062]
[1741978255500,3.55,1941.8,1941.5,5.15062]
[1741978256811,3.55,1941.8,1941.4,0.8327]
[1741978257015,3.55,1941.8,1941.6,5.15021]
[1741978257216,3.55,1941.8,1941.6,5.15029]
[1741978257623,3.55,1941.8,1941.5,5.15063]
[1741978258218,3.55,1941.8,1941.6,5.15035]
[1741978258402,3.0,1941.8,1941.6,5.15024]
[1741978258601,0.55,1942.0,1941.7,10.30024]
[1741978258912,3.55,1942.0,1941.8,5.14982]
[1741978259105,15.3172228,1942.1,1941.9,5.1495]
[1741978259106,0.0861,1942.1,1941.9,5.1495]
[1741978259440,17.1221,1942.3,1942.0,5.14922]
[1741978259638,16.34048294,1942.5,1942.1,5.14906]
[1741978259639,6.09135294,1942.5,1942.1,5.14906]
[1741978259818,0.0861,1942.6,1942.3,5.14838]
[1741978260339,13.38192,1942.6,1942.2,5.93689]
[1741978260636,0.08581285,1942.5,1942.3,5.1485]
[1741978260841,0.08581285,1942.5,1942.2,5.93684]
[1741978261140,3.0,1942.4,1942.1,5.14904]
[1741978261635,0.08535018,1942.3,1942.0,5.91795]
[1741978261806,0.08535018,1942.3,1942.0,5.14925]
[1741978263101,4.938842,1942.3,1941.9,5.14935]
[1741978263336,10.087482,1942.3,1941.9,5.14935]
[1741978263536,5.69883,1942.2,1941.9,5.14935]
[1741978263761,5.78493,1942.2,1941.8,5.91854]
[1741978264039,0.08515971,1942.1,1941.9,10.29897]
[1741978264241,0.55,1942.2,1941.9,6.256167]
[1741978264536,0.08515971,1942.1,1942.0,5.14928]
[1741978264733,0.08515971,1942.1,1941.9,6.256167]
[1741978265040,0.08494224,1942.0,1941.9,5.1494]
[1741978265207,0.55,1942.2,1941.9,5.1494]
[1741978265402,0.08515971,1942.1,1941.9,10.2989]
[1741978265630,0.55,1942.2,1941.8,5.91853]
[1741978265844,0.08515971,1942.1,1941.9,5.14952]
[1741978266142,0.08515971,1942.1,1941.8,6.510383]
[1741978266305,5.69884,1942.2,1941.8,5.91853]
[1741978266509,0.08494224,1942.0,1941.8,5.91853]
[1741978266711,5.14907,1942.1,1941.7,5.63110576]
[1741978266919,0.08472474,1941.9,1941.7,10.78105576]
[1741978267120,5.14907,1942.1,1941.8,5.14981]
[1741978267519,0.55,1942.0,1941.7,0.48113576]
[1741978267819,5.14982,1941.9,1941.7,0.48113576]
[1741978268342,8.69938,1942.0,1941.7,0.48113576]
[1741978268553,8.14918,1942.1,1941.7,6.45816576]
[1741978268849,3.0,1942.1,1941.9,5.14946]
[1741978269527,5.14827,1942.4,1942.0,5.14916]
[1741978269727,0.55,1942.4,1942.1,5.96735]
[1741978269925,8.69844,1942.4,1942.1,0.8184]
[1741978270122,8.69844,1942.4,1942.0,5.1493]
[1741978270818,8.69844,1942.4,1942.0,10.29848]
[1741978271143,8.69844,1942.4,1942.1,5.14905]
[1741978271342,8.69844,1942.4,1942.0,6.260868]
[1741978271343,8.69844,1942.4,1942.0,5.14918]
[1741978272150,5.14854,1942.3,1942.0,5.14918]
[1741978272459,3.55,1942.4,1942.0,5.14918]
[1741978272621,8.69835,1942.4,1942.0,5.14918]
[1741978272819,5.14891,1942.2,1941.9,0.8184]
[1741978273235,3.0,1942.1,1941.8,5.63096576]
[1741978273851,3.0,1942.1,1941.8,5.63080576]
[1741978274015,0.55,1942.0,1941.8,0.48113576]
[1741978274221,5.69959,1941.9,1941.8,0.48113576]
[1741978274446,19.9696218,1941.9,1941.8,0.48113576]
[1741978274651,20.0557218,1941.9,1941.8,0.48113576]
[1741978274849,0.55,1941.5,1941.3,0.7795]
[1741978275248,0.55,1941.5,1941.2,5.15125]
[1741978275424,5.15093,1941.4,1941.0,5.91312]
[1741978275628,0.08265252,1941.3,1941.1,5.1517]
[1741978275929,9.8169928,1941.5,1941.1,5.1517]
[1741978276116,0.08213515,1941.2,1941.1,5.1517]
[1741978276322,0.6361,1941.5,1941.2,5.15135]
[1741978276574,5.78689,1941.5,1941.0,5.91318]
[1741978276722,0.55,1941.3,1941.0,0.7612]
[1741978276924,5.70119,1941.3,1941.0,0.7612]
[1741978277424,5.70119,1941.3,1940.9,5.15212]
[1741978277633,0.55,1941.3,1941.0,5.15195]
[1741978277838,0.55,1941.3,1941.1,5.15167]
[1741978278018,3.57865,1941.5,1941.2,5.15145]
[1741978278223,8.72939,1941.5,1941.1,5.96814]
[1741978278633,3.0,1941.5,1941.1,5.96814]
[1741978279052,0.55,1941.4,1941.1,0.8166]
[1741978279223,3.0,1941.5,1941.1,5.15164]
[1741978279558,3.0,1941.5,1941.2,5.15143]
[1741978279761,4.385122,1941.5,1941.1,5.15164]
[1741978279924,9.535822,1941.5,1941.1,5.15164]
[1741978280746,9.535822,1941.5,1941.1,10.30321]
[1741978280954,4.385122,1941.5,1941.2,5.15129]
[1741978281466,3.0,1941.5,1941.3,5.15105]
[1741978281649,0.55,1941.6,1941.3,5.96765]
[1741978281829,3.0,1941.5,1941.2,5.15144]
[1741978282034,3.0,1941.5,1941.2,5.15127]
[1741978282226,0.55,1941.6,1941.3,5.15097]
[1741978282426,0.0861,1941.7,1941.3,5.15097]
[1741978282645,5.23629,1941.7,1941.3,5.15097]
[1741978282956,5.23629,1941.7,1941.4,5.1509]
[1741978283328,5.23629,1941.7,1941.3,5.15097]
[1741978284328,5.23629,1941.7,1941.3,10.302]
[1741978284866,5.23629,1941.7,1941.4,5.15086]
[1741978285229,0.0861,1941.7,1941.5,5.15046]
[1741978285467,0.0861,1941.7,1941.4,5.94497]
[1741978285468,0.55,1941.7,1941.4,5.94497]
[1741978286286,0.55,1941.7,1941.4,11.09573]
[1741978286762,0.55,1941.7,1941.4,5.94486]
[1741978289568,0.55,1941.5,1941.4,5.15092]
[1741978289858,5.15021,1941.7,1941.4,5.15092]
[1741978289859,0.55,1941.7,1941.4,5.15092]
[1741978290048,0.55,1941.7,1941.1,5.15161]
[1741978290254,3.0861,1941.8,1941.5,5.15056]
[1741978290458,5.70023,1941.7,1941.3,5.91407]
[1741978290765,0.08256882,1941.6,1941.3,5.91407]
[1741978291142,5.70023,1941.7,1941.3,5.91407]
[1741978291344,0.08235122,1941.5,1941.3,5.91407]
[1741978291533,5.70023,1941.7,1941.3,5.91407]
[1741978291733,0.0821336,1941.4,1941.3,5.91407]
[1741978291937,0.55,1941.7,1941.4,5.15077]
[1741978292167,0.08213762,1941.4,1941.3,5.91425]
[1741978292368,0.55,1941.5,1941.2,5.15136]
[1741978292564,6.356909,1941.5,1941.1,5.9355]
[1741978292766,0.55,1941.3,1941.1,5.1516]
[1741978293066,0.08200197,1941.2,1941.1,5.1516]
[1741978294541,3.0861,1941.5,1941.1,5.1516]
[1741978294743,0.0820594,1941.2,1941.1,5.1516]
[1741978294938,8.23689,1941.5,1941.2,5.15143]
[1741978295170,9.725579,1941.5,1941.2,5.15143]
[1741978295671,3.0,1941.5,1941.3,5.15107]
[1741978296770,3.0,1941.5,1941.2,5.15143]
[1741978296968,3.55,1941.5,1941.4,5.15092]
[1741978297167,6.1,1941.6,1941.4,5.15075]
[1741978298572,5.70014,1941.7,1941.4,5.15075]
[1741978298772,7.69965199,1941.7,1941.4,5.15075]
[1741978299977,2.54951199,1941.7,1941.4,10.30157]
[1741978300180,0.55,1941.8,1941.5,5.15045]
[1741978300344,0.55,1941.8,1941.5,10.30099]
[1741978300776,0.55,1941.8,1941.3,0.0515036]
[1741978300957,0.55,1941.8,1941.2,1.27345159]
[1741978301154,0.55,1941.8,1941.5,5.15048]
[1741978301360,0.55,1941.8,1941.6,5.15023]
[1741978302453,0.55,1941.8,1941.5,5.15056]
[1741978302965,0.55,1941.8,1941.5,10.30104]
[1741978303582,6.68312099,1941.8,1941.4,10.30157]
[1741978303883,6.68312099,1941.8,1941.4,10.78312159]
[1741978304253,0.55,1941.6,1941.4,0.48155159]
[1741978304454,0.55,1941.6,1941.4,5.63246159]
[1741978304856,0.55,1941.6,1941.4,0.48155159]
[1741978305184,0.55,1941.6,1941.3,10.3021]
[1741978305551,0.55,1941.6,1941.4,5.15077]
[1741978305752,0.08186271,1941.5,1941.4,5.15077]
[1741978306154,0.08186271,1941.5,1941.3,5.15103]
[1741978306373,0.55,1941.4,1941.1,5.15168]
[1741978306755,0.0816772,1941.3,1941.1,5.15156]
[1741978307087,0.55,1941.4,1941.1,5.92433133]
[1741978307255,0.08172943,1941.3,1941.1,5.92433133]
[1741978307689,0.55,1941.4,1941.1,5.92433133]
[1741978307876,0.08156173,1941.2,1941.1,5.92433133]
[1741978308182,0.55,1941.4,1941.1,5.92433133]
[1741978308487,0.55,1941.4,1941.2,0.48307767]
[1741978308689,0.08182933,1941.3,1941.2,5.63452767]
[1741978308866,0.55,1941.4,1941.2,0.48307767]
[1741978309189,0.08182933,1941.3,1941.2,0.48307767]
[1741978309355,0.08182933,1941.3,1941.2,5.63452767]
[1741978309551,0.55,1941.4,1941.2,5.63452767]
[1741978309785,0.08182933,1941.3,1941.2,5.63452767]
[1741978310185,0.55,1941.4,1941.2,5.63452767]
[1741978310385,0.08182933,1941.3,1941.2,5.63452767]
[1741978310686,0.55,1941.4,1941.2,5.63452767]
[1741978310889,0.08182933,1941.3,1941.2,5.63452767]
[1741978311188,0.55,1941.4,1941.2,0.48307767]
[1741978311356,0.08182933,1941.3,1941.2,0.48307767]
[1741978311555,0.08182933,1941.3,1941.2,5.63452767]
[1741978311964,0.55,1941.4,1941.2,5.15145]
[1741978312164,0.0861,1941.5,1941.2,5.15145]
[1741978312165,0.08182933,1941.3,1941.2,5.15145]
[1741978312465,0.55,1941.5,1941.2,10.30278]
[1741978312664,0.07880626,1941.4,1941.2,10.30278]
[1741978312866,0.07880626,1941.4,1941.3,5.15118]
[1741978313668,0.07880626,1941.4,1941.2,5.15133]
[1741978314392,0.07880626,1941.4,1941.2,10.30262]
[1741978316089,0.07880626,1941.4,1941.3,5.15118]
[1741978316328,0.07880626,1941.4,1941.3,5.95808]
[1741978316492,0.07880626,1941.4,1941.3,7.07416811]
[1741978316652,6.1,1941.6,1941.5,5.15065]
[1741978316852,6.1790394,1941.6,1941.5,5.15065]
[1741978320695,7.41055334,1941.6,1941.5,0.48306227]
[1741978320881,6.7290394,1941.6,1941.5,0.48306227]
[1741978321689,6.7290394,1941.6,1941.4,5.15073]
[1741978322084,0.6290394,1941.6,1941.4,5.15073]
[1741978322283,0.6290394,1941.6,1941.5,5.15065]
[1741978322866,0.6290394,1941.6,1941.4,5.15073]
[1741978323365,0.6290394,1941.6,1941.3,5.15117]
[1741978323570,0.55,1941.5,1941.2,5.15144]
[1741978323775,0.55,1941.3,1941.2,0.77289716]
[1741978324068,0.62857084,1941.3,1941.2,0.77289716]
[1741978324379,0.62857084,1941.3,1941.2,5.92434716]
[1741978324998,4.67467078,1941.3,1941.2,0.77289716]
[1741978325165,5.66584886,1941.3,1941.2,0.77289716]
[1741978326277,15.91402886,1941.3,1941.2,0.77289716]
[1741978326474,16.00012886,1941.3,1941.2,0.77289716]
[1741978326687,5.15165,1941.2,1940.8,0.77289716]
[1741978326881,0.55,1941.0,1940.8,5.92515716]
[1741978327089,0.55,1941.0,1940.8,7.11531988]
[1741978327295,0.07734695,1940.9,1940.8,5.92515716]
[1741978327867,0.07734695,1940.9,1940.8,5.15226]
[1741978328111,0.07734695,1940.9,1940.7,5.97647]
[1741978328909,0.07734695,1940.9,1940.7,11.12912]
[1741978329273,0.07734695,1940.9,1940.8,0.48311576]
[1741978330772,0.07734695,1940.9,1940.7,5.97642]
[1741978331521,0.07734695,1940.9,1940.7,0.8237]
[1741978332186,0.07734695,1940.9,1940.6,5.15285]
[1741978332824,0.55,1940.8,1940.4,0.77298522]
[1741978332981,4.04609994,1940.5,1940.4,0.77298522]
[1741978333317,14.92264012,1940.5,1940.4,0.77298522]
[1741978333497,16.7737335,1940.5,1940.4,0.77298522]
[1741978333699,25.8737335,1940.5,1940.4,0.77298522]
[1741978334712,5.15446,1940.1,1939.9,0.1153881]
[1741978334909,0.62396075,1940.0,1939.9,0.1153881]
[1741978335293,5.77859075,1940.0,1939.9,0.1153881]
[1741978335511,7.57485103,1940.0,1939.9,0.1153881]
[1741978335718,5.77859075,1940.0,1939.9,0.1153881]
[1741978336023,0.62396075,1940.0,1939.9,0.1153881]
[1741978336526,0.07396075,1940.0,1939.9,0.1153881]
[1741978337616,9.82469069,1940.0,1939.9,0.1153881]
[1741978339027,9.91079069,1940.0,1939.9,0.1153881]
[1741978339177,11.41733276,1940.0,1939.9,0.1153881]
[1741978340486,14.41733276,1940.0,1939.9,0.1153881]
[1741978341373,7.67006069,1940.0,1939.9,0.1153881]
[1741978341681,12.82469069,1940.0,1939.9,0.1153881]
[1741978342786,3.07396075,1940.0,1939.9,0.1153881]
[1741978343418,12.91079069,1940.0,1939.9,0.1153881]
[1741978343787,12.82469069,1940.0,1939.9,0.1153881]
[1741978343989,15.23260876,1940.0,1939.9,0.1153881]
[1741978344932,15.31870876,1940.0,1939.9,0.1153881]
[1741978345631,25.4648087,1940.0,1939.9,0.1153881]
[1741978346204,21.41870876,1940.0,1939.9,0.1153881]
[1741978348089,21.79795664,1940.0,1939.9,0.1153881]
[1741978350892,26.89795664,1940.0,1939.9,0.1153881]
[1741978353306,26.81185664,1940.0,1939.9,0.1153881]
[1741978354117,5.1561,1939.5,1939.3,0.782]
[1741978354428,0.55,1939.4,1939.3,0.782]
[1741978354625,0.55,1939.4,1939.3,5.93849]
[1741978354834,0.55,1939.4,1939.3,0.782]
[1741978355130,0.62299425,1939.4,1939.3,0.782]
[1741978356431,0.62299425,1939.4,1939.0,0.7658]
[1741978356631,0.62299425,1939.4,1939.0,5.92305]
[1741978356632,3.55,1939.2,1939.0,5.92305]
[1741978356834,3.55,1939.2,1939.0,11.08014]
[1741978357038,0.06880862,1939.1,1939.0,5.92289]
[1741978360018,0.55,1939.4,1939.2,11.14322]
[1741978360204,0.55,1939.4,1939.2,0.8297]
[1741978360400,4.13219994,1939.5,1939.0,1.108057]
[1741978360625,5.49429755,1939.4,1939.0,5.15717]
[1741978360834,0.55,1939.3,1939.0,5.15717]
[1741978361215,3.46522658,1939.5,1939.2,5.15675]
[1741978361508,0.55,1939.4,1939.2,5.91935]
[1741978361826,3.0,1939.5,1939.2,1.870237]
[1741978362007,3.0,1939.6,1939.5,5.9174]
[1741978362408,3.0,1939.8,1939.5,11.07324]
[1741978362637,9.20110994,1939.9,1939.5,5.91734]
[1741978362837,10.98884298,1940.0,1939.6,5.15558]
[1741978363037,0.37924788,1940.0,1939.7,5.15543]
[1741978363241,20.40065994,1940.1,1939.7,5.91693]
[1741978363535,3.0,1940.0,1939.7,5.91693]
[1741978364306,0.38667107,1940.1,1939.7,5.91692]
[1741978364512,22.21011,1940.2,1939.8,5.15517]
[1741978364513,22.156,1940.2,1939.8,5.15517]
[1741978364713,0.55,1940.1,1939.9,5.15471]
[1741978365129,3.37887872,1940.2,1940.0,5.15463]
[1741978365330,6.1,1940.3,1940.0,5.15463]
[1741978365526,0.61932009,1940.2,1940.0,5.15463]
[1741978365722,0.61932009,1940.2,1940.1,5.15437]
[1741978365942,3.06932009,1940.2,1940.1,5.97907]
[1741978366316,3.06932009,1940.2,1940.1,0.8247]
[1741978366517,3.06932009,1940.2,1939.9,5.98629]
[1741978367121,3.06932009,1940.2,1940.0,5.15462]
[1741978368715,0.55,1940.1,1939.9,0.8314]
[1741978368917,0.06785944,1940.0,1939.7,6.68734477]
[1741978369338,0.06785944,1940.0,1939.7,11.84261477]
[1741978369849,0.06785944,1940.0,1939.7,6.68719477]
[1741978370327,0.06785944,1940.0,1939.7,5.91517]
[1741978370917,0.06785944,1940.0,1939.8,5.15514]
[1741978371247,0.06785944,1940.0,1939.8,10.30994]
[1741978371451,0.06785944,1940.0,1939.8,11.416924]
[1741978371612,0.06785944,1940.0,1939.9,5.1549]
[1741978371816,0.06785944,1940.0,1939.9,5.9384]
[1741978372029,3.0,1940.2,1939.9,5.9384]
[1741978372231,0.06795957,1940.0,1939.9,5.9384]
[1741978372442,0.55,1940.1,1939.9,0.7835]
[1741978372651,0.06805956,1940.0,1939.9,0.7835]
[1741978373344,0.06805956,1940.0,1939.9,5.9384]
[1741978373756,0.06805956,1940.0,1939.9,7.14750177]
[1741978373964,3.0,1940.2,1940.0,5.15456]
[1741978374261,0.06915253,1940.1,1940.0,5.15456]
[1741978374559,0.37855769,1940.4,1940.2,5.15403]
[1741978374725,0.06958828,1940.3,1940.2,5.95243]
[1741978374928,0.55,1940.5,1940.2,7.063106]
[1741978375136,0.06980612,1940.4,1940.3,5.15371]
[1741978375639,5.099,1941.0,1940.6,5.92648]
[1741978375834,5.15204,1941.0,1940.6,5.92648]
[1741978376154,3.0,1940.9,1940.6,11.07941]
[1741978376398,5.099,1941.1,1940.7,5.15266]
[1741978376854,3.0,1941.0,1940.7,5.15266]
[1741978377061,0.55,1941.0,1940.7,5.15266]
[1741978377255,0.55,1940.8,1940.4,5.98253]
[1741978377460,0.55,1940.8,1940.5,5.1532]
[1741978377631,8.70253,1940.8,1940.4,6.580783]
[1741978377832,13.85515,1940.8,1940.4,6.580783]
[1741978378055,13.85515,1940.8,1940.4,5.15333]
[1741978378255,17.90124994,1940.8,1940.4,5.15333]
[1741978379029,12.74862994,1940.8,1940.4,10.3068]
[1741978379354,8.70253,1940.8,1940.4,5.15333]
[1741978379559,13.85518,1940.8,1940.4,5.15333]
[1741978379770,13.85516,1940.8,1940.4,5.15333]
[1741978380072,8.70253,1940.8,1940.4,5.15333]
[1741978380434,13.85527,1940.8,1940.4,5.15333]
[1741978380631,5.22043462,1940.7,1940.4,5.15333]
[1741978381669,0.06762462,1940.7,1940.4,5.15333]
[1741978381830,0.55,1940.6,1940.3,5.983]
[1741978382159,0.06758861,1940.5,1940.3,5.983]
[1741978382566,0.06758861,1940.5,1940.3,5.98291]
[1741978383166,0.06758861,1940.5,1940.4,5.15357]
[1741978383562,5.097,1940.7,1940.5,5.15318]
[1741978383740,0.06801132,1940.6,1940.5,5.15318]
[1741978383947,5.097,1940.7,1940.5,5.15318]
[1741978384146,8.097,1940.7,1940.6,5.15304]
[1741978384366,8.097,1940.7,1940.5,5.15318]
[1741978385370,8.097,1940.7,1940.5,10.30629]
[1741978385869,3.0,1940.7,1940.5,10.30629]
[1741978386269,3.0,1940.7,1940.3,0.8292]
[1741978386567,3.91,1940.7,1940.4,5.15347]
[1741978387147,0.55,1940.6,1940.3,5.98297]
[1741978387463,0.55,1940.6,1940.3,5.983]
[1741978387849,0.55,1940.6,1940.3,11.13661]
[1741978388048,0.55,1940.6,1940.3,5.98281]
[1741978389067,5.70305,1940.6,1940.3,5.98281]
[1741978389267,0.55,1940.6,1940.3,5.98281]
[1741978389669,0.55,1940.6,1940.3,0.8292]
[1741978389871,0.55,1940.6,1940.4,5.15337]
[1741978390071,3.0,1940.7,1940.6,5.15304]
[1741978390254,3.0,1940.7,1940.5,5.15319]
[1741978390773,3.0,1940.7,1940.6,5.97814]
[1741978392939,6.65,1941.0,1940.7,5.15273]
[1741978393168,0.55,1941.0,1940.7,5.15273]
[1741978393368,3.55,1941.0,1940.7,5.15273]
[1741978393575,0.55,1941.0,1940.7,5.15273]
[1741978393975,3.55,1941.0,1940.8,5.1525]
[1741978394172,4.929782,1941.0,1940.7,5.15273]
[1741978394978,4.929782,1941.0,1940.6,5.97812]
[1741978394979,10.081782,1941.0,1940.6,5.15302]
[1741978395165,5.78847,1940.9,1940.5,5.63541838]
[1741978395361,5.78847,1940.9,1940.5,10.78854838]
[1741978395642,0.55,1940.7,1940.5,5.63530838]
[1741978395875,0.55,1940.7,1940.5,0.48217838]
[1741978395876,5.15304,1940.6,1940.5,0.48217838]
[1741978396075,6.30614692,1940.6,1940.5,0.48217838]
[1741978396277,1.70310692,1940.6,1940.5,0.48217838]
[1741978396588,0.55,1940.5,1940.3,5.63600838]
[1741978397082,0.06738497,1940.4,1940.3,5.63600838]
[1741978397548,0.55,1940.6,1940.4,5.15355]
[1741978397861,0.06770272,1940.5,1940.4,5.15355]
[1741978400249,3.0,1940.7,1940.6,5.15304]
[1741978400548,3.0,1940.9,1940.7,5.15273]
[1741978400752,3.0,1940.9,1940.6,5.15298]
[1741978400979,9.7154462,1940.9,1940.6,5.15298]
[1741978401282,3.0,1941.0,1940.9,5.15224]
[1741978401467,5.095,1941.1,1940.9,5.15224]
[1741978401778,3.0,1941.0,1940.9,5.15224]
[1741978401948,3.0,1941.0,1940.8,11.11611]
[1741978402149,3.0,1941.0,1940.8,5.96363]
[1741978402348,3.0,1941.0,1940.8,11.11599]
[1741978402551,3.0,1941.0,1940.8,5.15233]
[1741978402860,3.0,1941.0,1940.7,5.15275]
[1741978403056,3.8095,1941.0,1940.6,5.93881]
[1741978403261,0.0861,1940.9,1940.6,5.15291]
[1741978403777,14.05661,1941.0,1940.7,5.15276]
[1741978403778,8.9045,1941.0,1940.7,5.15276]
[1741978404077,8.095,1941.0,1940.7,5.15276]
[1741978404284,3.0,1941.0,1940.7,10.30543]
[1741978404450,3.0,1941.0,1940.7,5.15267]
[1741978405081,8.15209,1941.0,1940.6,5.15289]
[1741978405282,0.55,1940.9,1940.6,5.15289]
[1741978405486,6.572559,1940.9,1940.5,11.10745]
[1741978405783,6.572559,1940.9,1940.6,5.15298]
[1741978406686,6.572559,1940.9,1940.5,5.95431]
[1741978406855,6.572559,1940.9,1940.5,11.10744]
[1741978407057,6.572559,1940.9,1940.6,5.153]
[1741978407388,1.420209,1940.9,1940.6,5.153]
[1741978407584,0.55,1940.9,1940.7,5.15264]
[1741978408190,3.0,1941.0,1940.7,5.15261]
[1741978408495,3.0,1941.0,1940.6,5.63621058]
[1741978408791,8.15208,1941.0,1940.6,5.63621058]
[1741978409370,8.15208,1941.0,1940.6,5.63606058]
[1741978409573,11.01518999,1941.0,1940.6,5.15288]
[1741978410175,5.86310999,1941.0,1940.6,5.15287]
[1741978410379,3.0,1941.0,1940.6,5.15287]
[1741978410580,0.06544684,1940.9,1940.6,5.15287]
[1741978411682,0.06544684,1940.9,1940.6,5.15286]
[1741978411881,0.06544684,1940.9,1940.7,5.15267]
[1741978412293,0.06544684,1940.9,1940.6,5.15298]
[1741978412805,0.06544684,1940.9,1940.6,5.6361158]
[1741978413007,0.06544684,1940.9,1940.6,10.7890158]
[1741978413173,0.06544684,1940.9,1940.7,5.15274]
[1741978415385,0.06544684,1940.9,1940.7,5.15273]
[1741978415704,0.88719852,1940.9,1940.5,5.95449]
[1741978415910,0.88719852,1940.9,1940.4,5.15344]
[1741978415911,10.39147,1940.8,1940.4,5.15344]
[1741978416203,5.21797332,1940.7,1940.3,5.96605]
[1741978416403,5.15306,1940.6,1940.3,5.15375]
[1741978416586,5.85413766,1940.5,1940.1,5.15434]
[1741978416787,11.59303143,1940.5,1940.1,5.15434]
[1741978417004,11.59305143,1940.5,1940.1,5.15434]
[1741978417384,6.43955143,1940.5,1940.1,5.15434]
[1741978417610,6.43955143,1940.5,1940.1,10.30848]
[1741978417774,6.43955143,1940.5,1940.1,5.15422]
[1741978417974,11.59307143,1940.5,1940.1,5.15422]
[1741978418196,6.43955143,1940.5,1940.1,5.15427]
[1741978418388,11.59306143,1940.5,1940.1,5.15427]
[1741978418598,6.31287614,1940.4,1940.0,5.15455]
[1741978418795,0.06446932,1940.3,1940.0,5.15455]
[1741978419001,0.06446932,1940.3,1940.1,5.15431]
[1741978419202,0.06446932,1940.3,1940.1,5.15427]
[1741978419512,5.78949,1940.5,1940.2,5.15401]
[1741978419708,6.883743,1940.5,1940.2,5.15401]
[1741978419886,6.883743,1940.5,1940.1,5.15431]
[1741978420103,6.883743,1940.5,1940.2,5.15402]
[1741978420288,1.730353,1940.5,1940.2,5.15402]
[1741978420605,1.730353,1940.5,1940.3,5.94043]
[1741978420606,0.55,1940.5,1940.3,5.94043]
[1741978420796,3.0,1940.6,1940.3,11.09406]